bitfinex/quotes_SOLUSD_20251127
["timestamp","ask_amount","ask_price","bid_price","bid_amount"]
[1764262348714,0.2,141.94,141.93,34.59472884]
[1764262349020,0.2,141.97,141.94,0.28432314]
[1764262349221,0.2,141.97,141.96,1.44587002]
[1764262349592,0.2,141.97,141.96,2.14587002]
[1764262350413,0.2,141.97,141.96,25.49897183]
[1764262350616,0.2,141.97,141.96,24.79897183]
[1764262350794,0.2,141.97,141.96,25.49897183]
[1764262351119,0.2,141.97,141.96,24.79897183]
[1764262351902,0.92,141.97,141.96,16.308864]
[1764262352406,0.92,141.97,141.93,8.49143282]
[1764262352407,7.96384985,141.97,141.93,8.49143282]
[1764262352602,1.44587002,141.95,141.9,1.44587002]
[1764262352806,2.16587002,141.96,141.9,1.44587002]
[1764262353010,0.72,141.95,141.91,16.308864]
[1764262353210,0.72,141.95,141.93,16.308864]
[1764262354497,0.72,141.95,141.92,24.80095415]
[1764262354825,0.72,141.95,141.93,1.44587002]
[1764262355514,0.72,141.95,141.92,24.80095415]
[1764262356719,0.72,141.95,141.92,27.90095415]
[1764262356922,0.72,141.95,141.92,20.85473402]
[1764262357526,0.72,141.95,141.92,19.408864]
[1764262358123,0.72,141.95,141.92,26.45506506]
[1764262360536,7.76474996,141.95,141.92,16.308864]
[1764262360907,0.7,141.94,141.92,16.308864]
[1764262363242,9.19113367,141.94,141.92,16.308864]
[1764262363412,1.44587002,141.93,141.89,3.1]
[1764262363606,9.19193068,141.93,141.89,3.1]
[1764262363932,0.7,141.92,141.89,26.45655655]
[1764262364143,2.14587002,141.92,141.86,1.44587002]
[1764262364310,1.44587002,141.91,141.86,3.1]
[1764262364503,1.44587002,141.91,141.88,16.308864]
[1764262364504,2.14587002,141.91,141.88,16.308864]
[1764262364705,0.7,141.9,141.88,16.308864]
[1764262365112,0.7,141.9,141.89,16.308864]
[1764262367025,9.19308636,141.9,141.86,16.308864]
[1764262367211,7.74721634,141.9,141.84,10.14990021]
[1764262367417,0.7,141.9,141.87,16.308864]
[1764262367728,0.7,141.9,141.88,16.308864]
[1764262367932,7.04640157,141.92,141.88,16.308864]
[1764262367933,7.74640157,141.92,141.88,16.308864]
[1764262368129,0.7,141.91,141.88,23.35690642]
[1764262369235,0.7,141.91,141.89,0.28432314]
[1764262370236,8.49132213,141.94,141.89,7.33183029]
[1764262370411,0.7,141.91,141.89,7.33183029]
[1764262375627,1000.7,141.91,141.89,7.33183029]
[1764262375841,0.7,141.9,141.88,16.308864]
[1764262376042,2.14587002,141.9,141.88,16.308864]
[1764262376351,0.7,141.9,141.88,16.308864]
[1764262376540,0.7,141.9,141.88,23.35702673]
[1764262377945,0.7,141.9,141.88,16.308864]
[1764262378816,7.74730455,141.9,141.88,16.308864]
[1764262379017,0.7,141.89,141.88,16.308864]
[1764262379339,2.14587002,141.89,141.83,3.68117897]
[1764262379637,1.44587002,141.86,141.83,16.308864]
[1764262379843,1.44587002,141.87,141.84,16.308864]
[1764262380044,9.19458909,141.87,141.84,16.308864]
[1764262380224,0.7,141.86,141.84,16.308864]
[1764262381030,2.14587002,141.86,141.84,16.308864]
[1764262381344,0.7,141.86,141.84,16.308864]
[1764262381547,2.14587002,141.85,141.8,13.83545877]
[1764262381725,2.14587002,141.85,141.81,0.28432314]
[1764262381918,0.7,141.84,141.81,16.59318714]
[1764262382236,0.7,141.84,141.81,23.36046631]
[1764262382417,7.75023575,141.84,141.81,16.308864]
[1764262382618,7.75023575,141.84,141.8,7.46340444]
[1764262382619,1.44587002,141.83,141.8,3.68340444]
[1764262382949,1.44587002,141.83,141.76,3.1]
[1764262382950,1.44587002,141.81,141.76,3.1]
[1764262383128,0.7,141.82,141.77,16.59318714]
[1764262383442,1.44587002,141.82,141.77,16.308864]
[1764262383626,0.7,141.81,141.77,16.308864]
[1764262383827,0.7,141.81,141.78,0.68]
[1764262384049,0.7,141.81,141.78,2.12587002]
[1764262384256,0.7,141.81,141.78,25.48790122]
[1764262384749,0.7,141.81,141.78,24.80790122]
[1764262385248,0.7,141.81,141.79,16.308864]
[1764262386228,7.7519163,141.81,141.79,16.308864]
[1764262386758,0.7,141.8,141.79,16.308864]
[1764262405650,9.19810502,141.8,141.75,6.78477932]
[1764262405857,1.44587002,141.78,141.76,16.308864]
[1764262406053,2.12587002,141.79,141.76,16.308864]
[1764262406252,8.49810502,141.8,141.76,17.028864]
[1764262406477,0.68,141.79,141.76,24.082905]
[1764262407864,7.052235,141.8,141.77,0.72]
[1764262408174,7.732235,141.8,141.77,0.72]
[1764262409974,0.68,141.8,141.77,7.7735666]
[1764262410182,0.68,141.8,141.77,7.0535666]
[1764262410673,0.68,141.8,141.77,7.7735666]
[1764262411767,10.15131274,141.82,141.77,7.7735666]
[1764262411968,0.68,141.81,141.78,0.72]
[1764262412567,0.68,141.81,141.77,10.1535666]
[1764262412750,0.68,141.81,141.77,10.8735666]
[1764262413575,13.09658481,141.83,141.78,1.00432314]
[1764262413777,6.04579979,141.83,141.78,1.00432314]
[1764262413981,0.68,141.82,141.79,0.72]
[1764262414285,10.15078021,141.83,141.79,0.72]
[1764262414467,0.68,141.82,141.79,0.72]
[1764262414785,0.68,141.82,141.79,7.77233611]
[1764262415084,0.68,141.82,141.79,6.27233611]
[1764262416157,3.1,141.83,141.8,0.28432314]
[1764262416360,3.78,141.83,141.8,0.28432314]
[1764262416553,0.68,141.83,141.8,0.28432314]
[1764262416957,0.68,141.83,141.81,7.05168887]
[1764262419669,9.9955926,141.85,141.81,7.05168887]
[1764262419979,0.68,141.84,141.81,7.05168887]
[1764262421073,1000.68,141.84,141.81,7.05168887]
[1764262421388,0.65,141.83,141.81,7.05168887]
[1764262422475,1000.0,141.84,141.81,24.68091106]
[1764262422782,1000.65,141.84,141.81,24.68091106]
[1764262423876,1000.65,141.84,141.81,26.94671085]
[1764262424277,1000.65,141.84,141.82,2.55012293]
[1764262424278,1000.0,141.84,141.82,2.55012293]
[1764262424474,1000.0,141.84,141.82,0.28432314]
[1764262424778,0.65,141.83,141.82,0.28432314]
[1764262425170,1000.65,141.84,141.82,0.28432314]
[1764262425494,1000.0,141.84,141.82,7.33502865]
[1764262425685,1000.65,141.84,141.82,7.33502865]
[1764262427674,1000.0,141.84,141.82,9.83082844]
[1764262427877,1000.0,141.84,141.83,2.55012293]
[1764262428205,1000.0,141.84,141.83,2.78012293]
[1764262428490,1000.0,141.84,141.83,5.88012293]
[1764262429189,1000.0,141.84,141.83,5.65012293]
[1764262429392,1000.0,141.84,141.83,19.69318714]
[1764262429596,1000.65,141.84,141.83,23.35955849]
[1764262430375,1000.0,141.84,141.83,23.35955849]
[1764262430603,1000.65,141.84,141.83,23.35955849]
[1764262430793,1000.0,141.84,141.83,25.62535828]
[1764262431103,1000.0,141.84,141.83,25.90968142]
[1764262431493,1000.0,141.84,141.83,26.13968142]
[1764262437601,1000.0,141.84,141.83,25.90968142]
[1764262437785,1000.0,141.84,141.83,26.13968142]
[1764262440005,1000.0,141.84,141.83,34.94962634]
[1764262440213,960.5814,141.84,141.83,34.94962634]
[1764262440424,704.91044917,141.84,141.83,109.94962634]
[1764262440711,412.80909396,141.84,141.83,111.94962633]
[1764262440882,412.80909396,141.84,141.83,133.12036836]
[1764262441088,338.94679072,141.84,141.83,133.12036836]
[1764262441388,77.9993056,141.84,141.83,133.12036836]
[1764262441697,0.65,141.91,141.88,0.28432314]
[1764262441900,0.65,141.91,141.87,16.308864]
[1764262442202,0.65,141.91,141.89,16.308864]
[1764262442698,0.65,141.91,141.88,0.28432314]
[1764262443302,0.65,141.91,141.88,25.90718121]
[1764262443504,0.65,141.91,141.88,23.64138142]
[1764262447812,9.96254087,141.91,141.88,16.308864]
[1764262448210,0.65,141.9,141.88,16.308864]
[1764262448727,0.65,141.9,141.87,0.28432314]
[1764262452494,7.69738628,141.9,141.86,19.408864]
[1764262452790,0.68,141.89,141.86,19.408864]
[1764262454406,7.72782484,141.89,141.86,19.408864]
[1764262455799,0.68,141.88,141.86,19.408864]
[1764262457348,0.68,141.88,141.85,9.31516633]
[1764262457349,7.72822039,141.88,141.84,0.28432314]
[1764262457635,2.26579979,141.86,141.81,5.36579979]
[1764262457799,2.26579979,141.86,141.82,16.308864]
[1764262457995,0.68,141.85,141.82,16.308864]
[1764262458199,0.68,141.85,141.83,0.28432314]
[1764262458922,0.68,141.85,141.83,7.33500997]
[1764262459626,0.68,141.85,141.83,0.28432314]
[1764262460420,0.68,141.85,141.79,8.80994492]
[1764262460421,2.26579979,141.84,141.78,2.26579979]
[1764262460608,2.26579979,141.84,141.78,12.41501643]
[1764262460801,0.68,141.83,141.81,16.308864]
[1764262462826,7.72921664,141.86,141.82,0.28432314]
[1764262463025,0.68,141.86,141.84,0.28432314]
[1764262463228,0.68,141.86,141.84,16.59318714]
[1764262463530,0.68,141.86,141.84,16.308864]
[1764262466008,0.68,141.86,141.84,23.35892783]
[1764262467937,0.68,141.88,141.85,2.55012293]
[1764262468312,0.68,141.88,141.85,9.59861572]
[1764262468509,0.68,141.88,141.85,2.55012293]
[1764262468737,0.68,141.88,141.85,9.59945073]
[1764262469431,0.68,141.88,141.86,2.26579979]
[1764262469824,0.68,141.89,141.87,0.28432314]
[1764262475536,0.68,141.89,141.87,8.78081588]
[1764262475734,0.68,141.9,141.87,8.78081588]
[1764262476537,0.68,141.9,141.87,25.08967988]
[1764262478238,0.68,141.9,141.88,8.49592753]
[1764262480444,10.14641477,141.92,141.88,8.49592753]
[1764262480617,0.72,141.91,141.88,8.49592753]
[1764262481725,0.72,141.91,141.89,1.73216582]
[1764262482437,3.82,141.92,141.9,16.308864]
[1764262483144,3.82,141.92,141.9,17.75670668]
[1764262483323,0.72,141.92,141.9,17.75670668]
[1764262484141,0.72,141.92,141.9,31.84907888]
[1764262485441,0.72,141.92,141.9,30.4012362]
[1764262485641,0.72,141.92,141.9,33.5012362]
[1764262485948,0.72,141.92,141.9,34.94907888]
[1764262487131,0.72,141.94,141.9,34.94907888]
[1764262487335,0.72,141.93,141.9,34.94907888]
[1764262490140,0.72,141.93,141.91,1.73216582]
[1764262491031,0.72,141.93,141.91,8.77859933]
[1764262491839,0.72,141.93,141.9,23.35588851]
[1764262492055,0.72,141.93,141.91,16.308864]
[1764262498456,1000.72,141.93,141.91,24.80334427]
[1764262498641,1000.0,141.93,141.92,1.73216582]
[1764262498829,1000.0,141.93,141.92,22.89992027]
[1764262499457,1000.0,141.93,141.92,33.04614349]
[1764262500735,1000.0,141.93,141.92,24.55207759]
[1764262500942,1000.72,141.93,141.92,33.04614349]
[1764262501152,1000.0,141.93,141.92,33.04614349]
[1764262501449,1000.0,141.93,141.92,33.27614349]
[1764262501656,1000.0,141.93,141.92,42.08608841]
[1764262506664,1000.72,141.93,141.92,21.16775445]
[1764262506869,1007.76581354,141.93,141.89,4.54784268]
[1764262507168,0.72,141.92,141.89,3.1]
[1764262507465,1.44784268,141.91,141.86,22.62007882]
[1764262507640,1.44784268,141.91,141.85,1.44784268]
[1764262507641,0.72,141.9,141.85,1.44784268]
[1764262508059,0.72,141.9,141.87,16.308864]
[1764262509470,7.76735352,141.9,141.87,16.308864]
[1764262509956,0.72,141.89,141.87,16.308864]
[1764262511950,7.7678585,141.89,141.87,16.308864]
[1764262512356,0.66,141.88,141.87,16.59318714]
[1764262515153,7.04743188,141.9,141.87,16.59318714]
[1764262515359,0.66,141.89,141.87,16.59318714]
[1764262516366,0.66,141.89,141.87,16.308864]
[1764262516567,0.66,141.89,141.86,16.308864]
[1764262516975,17.6217664,141.87,141.83,3.68148729]
[1764262517150,7.04820975,141.88,141.82,1.44784268]
[1764262517471,7.04820975,141.88,141.83,0.28432314]
[1764262517472,2.10784268,141.87,141.83,0.28432314]
[1764262517973,0.66,141.86,141.83,0.28432314]
[1764262518173,2.10784268,141.86,141.83,0.28432314]
[1764262518368,0.66,141.86,141.83,0.28432314]
[1764262518573,0.66,141.85,141.83,0.28432314]
[1764262518779,0.66,141.85,141.83,1.73216582]
[1764262518974,0.66,141.88,141.86,0.28432314]
[1764262519753,0.66,141.9,141.87,17.75670668]
[1764262520060,0.66,141.9,141.89,16.308864]
[1764262520262,0.66,141.91,141.89,16.308864]
[1764262521354,0.66,141.91,141.89,17.75670668]
[1764262521679,1007.70607232,141.93,141.9,1.73216582]
[1764262521873,1000.66,141.93,141.9,1.73216582]
[1764262522074,0.66,141.92,141.9,0.28432314]
[1764262524161,1000.0,141.93,141.9,25.08811286]
[1764262524357,1000.66,141.93,141.9,25.08811286]
[1764262524966,0.66,141.92,141.91,16.308864]
[1764262526282,1000.66,141.93,141.91,24.80342643]
[1764262526575,0.66,141.92,141.91,25.08774957]
[1764262527157,1000.0,141.93,141.91,25.08774957]
[1764262527480,1000.0,141.93,141.92,1.73216582]
[1764262527668,1000.0,141.93,141.92,8.77838904]
[1764262528884,1000.66,141.93,141.92,7.33054636]
[1764262531680,1000.66,141.93,141.92,9.59121347]
[1764262532384,1000.0,141.93,141.92,9.59121347]
[1764262532568,1000.0,141.93,141.92,12.69121347]
[1764262533471,1000.0,141.93,141.92,12.92121347]
[1764262534390,1000.0,141.93,141.92,12.69121347]
[1764262535298,1000.0,141.93,141.92,12.92121347]
[1764262536384,1000.0,141.93,141.92,21.73115839]
[1764262536773,1000.0,141.93,141.92,42.89294021]
[1764262539080,1000.0,141.93,141.92,39.56294021]
[1764262539279,1000.0,141.93,141.92,21.50115839]
[1764262547617,1000.0,141.93,141.89,7.04771301]
[1764262547618,1000.69,141.93,141.89,7.04771301]
[1764262547821,0.69,141.92,141.89,12.40838012]
[1764262548121,0.69,141.92,141.89,28.71724412]
[1764262548422,0.69,141.92,141.9,0.28432314]
[1764262548612,0.69,141.92,141.9,2.54499025]
[1764262549698,0.69,141.92,141.9,9.59216497]
[1764262553326,2.95066711,141.92,141.89,16.308864]
[1764262553518,2.26066711,141.91,141.89,16.308864]
[1764262553722,2.26066711,141.9,141.86,6.78092971]
[1764262553910,2.26066711,141.9,141.86,10.73010877]
[1764262553911,2.95066711,141.9,141.86,10.73010877]
[1764262554227,0.69,141.89,141.88,16.308864]
[1764262557534,0.69,141.89,141.86,19.98979371]
[1764262558031,0.69,141.89,141.86,22.25046082]
[1764262558625,7.73780639,141.89,141.86,22.25046082]
[1764262559135,0.69,141.88,141.87,2.54499025]
[1764262559544,0.69,141.88,141.87,16.308864]
[1764262559714,0.69,141.88,141.85,16.45102557]
[1764262560932,7.73828038,141.88,141.85,16.45102557]
[1764262561534,0.69,141.87,141.85,23.50067197]
[1764262561727,0.69,141.87,141.85,25.76133908]
[1764262562617,0.69,141.87,141.86,0.14216157]
[1764262563640,0.69,141.87,141.83,3.68276415]
[1764262563641,13.09961595,141.87,141.83,3.68276415]
[1764262563816,13.09961595,141.87,141.8,9.31271831]
[1764262563817,2.26066711,141.85,141.8,9.31271831]
[1764262564015,2.95066711,141.86,141.81,18.56953111]
[1764262564412,0.69,141.85,141.81,18.56953111]
[1764262565017,10.00075224,141.85,141.81,16.308864]
[1764262565423,0.69,141.84,141.81,16.308864]
[1764262565911,0.69,141.84,141.81,23.36050349]
[1764262568728,0.69,141.84,141.81,25.6211706]
[1764262569115,0.69,141.84,141.81,23.36050349]
[1764262569321,0.69,141.84,141.81,25.6211706]
[1764262569526,7.05069449,141.83,141.8,3.68360814]
[1764262569820,7.74020552,141.84,141.8,0.28432314]
[1764262570139,0.69,141.83,141.81,2.26066711]
[1764262570841,5.36066711,141.87,141.82,2.54499025]
[1764262571047,0.7,141.88,141.86,2.26066711]
[1764262571217,7.04792353,141.89,141.86,2.26066711]
[1764262571417,0.7,141.88,141.86,2.26066711]
[1764262572441,0.7,141.88,141.85,18.56953111]
[1764262572623,0.7,141.88,141.85,16.308864]
[1764262572825,0.7,141.88,141.85,18.56953111]
[1764262573940,7.74822872,141.88,141.85,16.308864]
[1764262574323,0.7,141.87,141.85,18.56953111]
[1764262574848,0.7,141.87,141.86,2.26066711]
[1764262575024,0.7,141.87,141.85,16.308864]
[1764262575346,0.7,141.87,141.85,18.56953111]
[1764262581350,0.7,141.87,141.86,2.26066711]
[1764262581725,0.7,141.88,141.86,2.26066711]
[1764262582844,2.26066711,141.91,141.87,2.26066711]
[1764262582845,0.7,141.91,141.87,2.26066711]
[1764262583025,0.7,141.9,141.88,2.26066711]
[1764262583343,0.7,141.9,141.89,2.26066711]
[1764262584046,0.7,141.91,141.89,18.56953111]
[1764262584824,0.7,141.91,141.9,2.26066711]
[1764262585930,0.7,141.91,141.89,16.308864]
[1764262586130,0.7,141.91,141.89,18.56953111]
[1764262586354,0.7,141.91,141.89,25.61720963]
[1764262587849,0.7,141.91,141.9,2.26066711]
[1764262588670,1000.7,141.93,141.9,2.26066711]
[1764262588959,1000.7,141.93,141.91,2.26066711]
[1764262589157,0.7,141.92,141.91,2.26066711]
[1764262589729,1000.7,141.93,141.91,9.30726537]
[1764262590133,1000.7,141.93,141.91,2.26066711]
[1764262590758,1000.7,141.93,141.91,1.73129207]
[1764262592767,0.7,141.92,141.91,1.73129207]
[1764262594543,7.74622322,141.92,141.9,1.44696893]
[1764262594763,0.7,141.91,141.9,16.59318714]
[1764262595271,0.7,141.91,141.9,16.308864]
[1764262599041,1000.0,141.93,141.9,24.80297571]
[1764262599345,0.7,141.92,141.91,1.44696893]
[1764262603682,0.7,141.92,141.9,27.90298586]
[1764262604186,0.7,141.92,141.91,1.44696893]
[1764262606750,0.7,141.92,141.9,27.90298586]
[1764262607183,0.7,141.92,141.9,26.45601693]
[1764262607355,0.7,141.92,141.9,27.90298586]
[1764262607681,0.7,141.92,141.84,35.95401321]
[1764262607682,1.44696893,141.91,141.85,4.54696893]
[1764262607855,10.84633033,141.92,141.85,4.54696893]
[1764262608055,2.16696893,141.91,141.86,1.44696893]
[1764262608469,0.72,141.9,141.86,1.73129207]
[1764262608779,7.76758213,141.9,141.86,8.49614751]
[1764262609582,0.72,141.89,141.86,8.49614751]
[1764262610179,0.72,141.89,141.86,7.04917858]
[1764262611386,0.72,141.89,141.86,7.75917858]
[1764262611881,7.76694701,141.91,141.88,1.44696893]
[1764262612263,0.72,141.91,141.88,1.44696893]
[1764262612664,0.72,141.91,141.88,8.49516734]
[1764262613892,0.72,141.91,141.88,1.44696893]
[1764262614675,1.44696893,141.9,141.86,16.308864]
[1764262615071,0.72,141.89,141.86,16.308864]
[1764262616463,0.72,141.89,141.86,23.35800087]
[1764262616971,0.72,141.89,141.86,24.8049698]
[1764262617178,0.72,141.89,141.86,23.35800087]
[1764262618586,0.72,141.89,141.86,24.06800087]
[1764262618789,0.72,141.9,141.88,1.44696893]
[1764262618970,0.72,141.9,141.87,8.77992861]
[1764262619664,7.7672962,141.9,141.87,0.28432314]
[1764262620189,0.72,141.89,141.87,0.28432314]
[1764262621485,7.7672962,141.9,141.87,0.28432314]
[1764262621690,0.72,141.89,141.87,0.28432314]
[1764262623288,0.72,141.9,141.87,8.77997427]
[1764262623874,0.72,141.9,141.87,0.28432314]
[1764262624676,2.16696893,141.9,141.86,16.308864]
[1764262625073,0.72,141.89,141.86,16.308864]
[1764262625274,7.7677792,141.89,141.86,16.308864]
[1764262625994,0.72,141.89,141.86,24.80498942]
[1764262626193,0.72,141.9,141.87,2.44129207]
[1764262628393,0.72,141.9,141.87,0.28432314]
[1764262628394,7.76728772,141.9,141.87,0.28432314]
[1764262628769,0.72,141.89,141.87,0.28432314]
[1764262629767,0.72,141.9,141.87,7.33302105]
[1764262630998,7.76722172,141.9,141.87,7.33302105]
[1764262632393,0.67,141.89,141.87,7.33302105]
[1764262634297,7.04671975,141.91,141.87,7.33302105]
[1764262634592,0.67,141.91,141.89,0.28432314]
[1764262634784,1010.81581753,141.93,141.89,0.28432314]
[1764262634991,1000.67,141.93,141.89,2.44129207]
[1764262635477,1007.71584945,141.93,141.89,2.44129207]
[1764262635673,1007.71584945,141.93,141.89,9.48881604]
[1764262635872,0.67,141.92,141.89,0.28432314]
[1764262636194,0.67,141.92,141.9,16.308864]
[1764262639500,0.67,141.92,141.9,23.3560734]
[1764262641796,1000.0,141.93,141.9,25.51304233]
[1764262642179,1000.0,141.93,141.91,0.71]
[1764262642379,1000.67,141.93,141.9,25.51304233]
[1764262643000,1000.67,141.93,141.9,24.80304233]
[1764262643501,0.67,141.92,141.9,23.3560734]
[1764262643877,0.67,141.92,141.9,26.4560734]
[1764262646497,1000.0,141.93,141.9,26.4560734]
[1764262646498,1000.67,141.93,141.9,27.1660734]
[1764262646797,1000.67,141.93,141.9,26.4560734]
[1764262647197,0.67,141.92,141.9,26.4560734]
[1764262649202,0.67,141.92,141.9,19.408864]
[1764262649410,0.67,141.92,141.9,26.45607997]
[1764262652221,17.61109793,141.96,141.9,26.45607997]
[1764262652222,7.36266122,142.16,141.94,21.19]
[1764262652510,0.2,142.18,142.17,25.40313206]
[1764262652704,0.2,142.18,142.17,26.53130919]
[1764262652904,0.2,142.18,142.17,26.24698605]
[1764262653091,0.87,142.18,142.17,26.24698605]
[1764262653296,0.87,142.18,142.17,38.84698605]
[1764262653297,4.03,142.18,142.17,38.84698605]
[1764262653494,4.03,142.18,142.14,18.70235927]
[1764262653692,3.36,142.18,142.17,16.308864]
[1764262653893,3.36,142.18,142.17,20.99503118]
[1764262654101,3.36,142.18,142.17,16.308864]
[1764262654311,4.03,142.18,142.17,16.308864]
[1764262655598,4.03,142.18,142.17,23.34269673]
[1764262655798,4.03,142.18,142.17,16.308864]
[1764262656013,4.03,142.18,142.16,7.03391063]
[1764262656215,0.67,142.17,142.16,7.03391063]
[1764262656611,0.67,142.17,142.13,2.2513337]
[1764262656797,2.9213337,142.17,142.15,16.308864]
[1764262657198,0.67,142.17,142.15,16.308864]
[1764262657400,0.67,142.16,142.15,16.308864]
[1764262657910,3.83,142.16,142.15,23.3436197]
[1764262658424,0.67,142.16,142.15,23.3436197]
[1764262658616,3.83,142.16,142.15,23.3436197]
[1764262661205,0.67,142.16,142.15,23.3436197]
[1764262661401,3.83,142.16,142.15,23.3436197]
[1764262662617,6.0813337,142.16,142.11,7.03680247]
[1764262662819,3.83,142.15,142.12,2.2513337]
[1764262663009,0.67,142.14,142.12,18.5601977]
[1764262663209,0.67,142.14,142.13,16.308864]
[1764262664128,3.16,142.15,142.13,18.5601977]
[1764262664332,0.67,142.14,142.13,18.5601977]
[1764262664508,3.81,142.14,142.13,23.34467628]
[1764262665818,3.81,142.14,142.13,16.308864]
[1764262666016,3.81,142.14,142.13,23.34467628]
[1764262666924,3.14,142.14,142.13,25.59600998]
[1764262667621,3.14,142.14,142.13,47.80756396]
[1764262668021,0.67,142.16,142.13,47.80756396]
[1764262668226,3.14,142.15,142.14,2.2513337]
[1764262668826,0.67,142.16,142.14,9.28665099]
[1764262669025,3.14,142.15,142.14,9.28665099]
[1764262669526,3.81,142.15,142.14,7.03531729]
[1764262670235,3.81,142.15,142.14,11.65361062]
[1764262671833,3.81,142.15,142.14,4.61829333]
[1764262672016,3.81,142.15,142.14,23.34418129]
[1764262672617,0.67,142.15,142.13,23.34458528]
[1764262672834,3.81,142.14,142.13,23.34458528]
[1764262673437,3.81,142.14,142.1,19.84400499]
[1764262673738,0.67,142.13,142.11,6.87286922]
[1764262674042,0.67,142.13,142.12,16.308864]
[1764262674233,0.67,142.13,142.11,16.308864]
[1764262674425,0.67,142.13,142.11,25.59700017]
[1764262675151,17.57,142.13,142.11,25.59700017]
[1764262675316,16.9,142.13,142.12,2.2513337]
[1764262675641,20.04,142.13,142.12,6.87388848]
[1764262676539,20.04,142.13,142.12,30.21905982]
[1764262677425,1020.04,142.13,142.12,30.21905982]
[1764262677946,1016.9,142.13,142.12,30.21905982]
[1764262678147,1020.04,142.13,142.12,30.21905982]
[1764262678945,1020.71,142.13,142.12,30.21905982]
[1764262680241,1020.71,142.13,142.12,11.65886212]
[1764262682649,1020.71,142.13,142.12,4.62255478]
[1764262682955,1020.71,142.13,142.12,11.65886212]
[1764262684252,1017.57,142.13,142.12,11.65886212]
[1764262684556,1020.71,142.13,142.12,11.65886212]
[1764262686547,1017.57,142.13,142.12,4.62255478]
[1764262686743,1031.77127862,142.13,142.06,18.5601977]
[1764262686942,1031.77127862,142.13,142.08,16.308864]
[1764262686943,2.2513337,142.1,142.08,16.308864]
[1764262687253,9.47994492,142.12,142.08,16.308864]
[1764262687440,8.80994492,142.09,142.02,2.2513337]
[1764262687637,0.81216157,142.11,142.03,2.2513337]
[1764262687638,5.3913337,142.08,142.03,2.2513337]
[1764262687843,3.14,142.08,142.04,2.2513337]
[1764262688037,0.67,142.07,142.03,2.2513337]
[1764262688860,0.67,142.09,142.06,2.2513337]
[1764262689035,20.71,142.08,142.06,2.2513337]
[1764262689749,20.71,142.08,142.07,7.03878369]
[1764262691181,20.71,142.08,142.06,7.03913597]
[1764262691536,16.9,142.08,142.06,7.03913597]
[1764262691756,3.14,142.07,142.06,7.03913597]
[1764262692156,9.28834736,142.11,142.06,9.95046967]
[1764262692157,0.71,142.1,142.06,9.95046967]
[1764262692471,1000.0,142.13,142.1,9.09426806]
[1764262692659,1000.0,142.13,142.12,27.65446576]
[1764262692835,1000.0,142.13,142.12,31.23935208]
[1764262692836,1003.14,142.13,142.12,31.23935208]
[1764262693035,1003.14,142.13,142.12,28.31446576]
[1764262693457,942.84335172,142.13,142.12,28.31446576]
[1764262693641,945.98335172,142.13,142.12,28.31446576]
[1764262693959,945.98335172,142.13,142.12,35.3507731]
[1764262694473,888.82670344,142.13,142.12,35.3507731]
[1764262694941,885.68670344,142.13,142.12,35.3507731]
[1764262695261,807.22138771,142.13,142.12,35.3507731]
[1764262695471,807.22138771,142.13,142.12,114.60210679]
[1764262695472,689.25360179,142.13,142.12,114.60210679]
[1764262695648,335.08460318,142.13,142.12,114.60210679]
[1764262695962,30.6963962,142.13,142.12,114.60210679]
[1764262696159,16.9,142.16,142.15,10.80994491]
[1764262696458,0.2,142.18,142.17,25.11880892]
[1764262696757,16.9,142.21,142.18,0.28432314]
[1764262696959,0.1,142.26,142.21,16.59318714]
[1764262696960,0.67,142.25,142.21,16.59318714]
[1764262697268,0.67,142.25,142.24,2.2513337]
[1764262697563,0.67,142.25,142.23,2.2513337]
[1764262697564,3.81,142.25,142.23,2.2513337]
[1764262698257,0.67,142.24,142.23,2.2513337]
[1764262698670,0.67,142.24,142.23,13.97484206]